[Event "Titled Tuesday Blitz July 11 Early 2023"]
[White "Malyi, Viacheslav"]
[Black "Mahdavi, Reza"]
[WhiteFideId "14123983"]
[BlackFideId "12595926"]
[WhiteElo "2545"]
[BlackElo "2741"]
[Result "0-1"]
[Round "4"]
[TimeControl "180+2"]
[Date "2023.07.11"]
[WhiteClock "0:00:00"]
[BlackClock "0:00:39"]
[Board "56"]

1. e4 {[%clk 0:03:00]}  c5 {[%clk 0:02:57]} 2. Nf3 {[%clk 0:03:00]}  d6 {[%clk 0:02:58]} 3. d4 {[%clk 0:03:00]}  cxd4 {[%clk 0:02:59]} 4. Nxd4 {[%clk 0:03:01]}  Nf6 {[%clk 0:03:00]} 5. Nc3 {[%clk 0:03:01]}  a6 {[%clk 0:03:00]} 6. Rg1 {[%clk 0:03:02]}  b5 {[%clk 0:03:00]} 7. g4 {[%clk 0:03:01]}  Bb7 {[%clk 0:02:56]} 8. Bg2 {[%clk 0:03:01]}  g6 {[%clk 0:02:55]} 9. g5 {[%clk 0:03:00]}  Nfd7 {[%clk 0:02:50]} 10. Be3 {[%clk 0:03:00]}  Bg7 {[%clk 0:02:45]} 11. Qd2 {[%clk 0:03:01]}  Ne5 {[%clk 0:02:45]} 12. b3 {[%clk 0:02:52]}  Ng4 {[%clk 0:02:38]} 13. O-O-O {[%clk 0:02:51]}  Nxe3 {[%clk 0:02:39]} 14. Qxe3 {[%clk 0:02:52]}  Nd7 {[%clk 0:02:38]} 15. f4 {[%clk 0:02:47]}  Rc8 {[%clk 0:02:37]} 16. Nd5 {[%clk 0:02:44]}  Bxd5 {[%clk 0:02:36]} 17. exd5 {[%clk 0:02:43]}  Qa5 {[%clk 0:02:32]} 18. Kb1 {[%clk 0:02:38]}  Qa3 {[%clk 0:02:29]} 19. c3 {[%clk 0:02:25]}  Qc5 {[%clk 0:02:22]} 20. Rd3 {[%clk 0:02:13]}  Bxd4 {[%clk 0:02:18]} 21. Qxd4 {[%clk 0:02:08]}  Qxd4 {[%clk 0:02:19]} 22. cxd4 {[%clk 0:02:07]}  Nb6 {[%clk 0:02:14]} 23. Rc1 {[%clk 0:01:55]}  Rxc1+ {[%clk 0:02:07]} 24. Kxc1 {[%clk 0:01:56]}  Kd7 {[%clk 0:02:02]} 25. Rc3 {[%clk 0:01:55]}  Rc8 {[%clk 0:01:58]} 26. Bh3+ {[%clk 0:01:49]}  e6 {[%clk 0:01:57]} 27. dxe6+ {[%clk 0:01:50]}  fxe6 {[%clk 0:01:57]} 28. Rxc8 {[%clk 0:01:50]}  Nxc8 {[%clk 0:01:46]} 29. d5 {[%clk 0:01:48]}  Ke7 {[%clk 0:01:43]} 30. Bxe6 {[%clk 0:01:48]}  Nb6 {[%clk 0:01:44]} 31. Kd2 {[%clk 0:01:41]}  Na8 {[%clk 0:01:44]} 32. f5 {[%clk 0:01:29]}  gxf5 {[%clk 0:01:41]} 33. Bxf5 {[%clk 0:01:30]}  Nc7 {[%clk 0:01:42]} 34. Be4 {[%clk 0:01:06]}  Kf7 {[%clk 0:01:31]} 35. Kc3 {[%clk 0:00:59]}  a5 {[%clk 0:01:31]} 36. h4 {[%clk 0:00:57]}  Kg7 {[%clk 0:01:28]} 37. Kd4 {[%clk 0:00:44]}  Na6 {[%clk 0:01:05]} 38. Bf5 {[%clk 0:00:34]}  Nc5 {[%clk 0:00:56]} 39. Kc3 {[%clk 0:00:24]}  Na6 {[%clk 0:00:49]} 40. a3 {[%clk 0:00:23]}  Nc7 {[%clk 0:00:46]} 41. Kd4 {[%clk 0:00:22]}  h6 {[%clk 0:00:42]} 42. Ke4 {[%clk 0:00:21]}  hxg5 {[%clk 0:00:42]} 43. hxg5 {[%clk 0:00:22]}  Na6 {[%clk 0:00:43]} 44. Kd4 {[%clk 0:00:19]}  Nc5 {[%clk 0:00:44]} 45. b4 {[%clk 0:00:15]}  axb4 {[%clk 0:00:43]} 46. axb4 {[%clk 0:00:16]}  Na6 {[%clk 0:00:44]} 47. Kc3 {[%clk 0:00:17]}  Nc7 {[%clk 0:00:44]} 48. Kd4 {[%clk 0:00:15]}  Na6 {[%clk 0:00:44]} 49. Kc3 {[%clk 0:00:14]}  Nc7 {[%clk 0:00:45]} 50. Be4 {[%clk 0:00:15]}  Kf7 {[%clk 0:00:44]} 51. Kd4 {[%clk 0:00:14]}  Kg7 {[%clk 0:00:45]} 52. Bd3 {[%clk 0:00:15]}  Kf7 {[%clk 0:00:45]} 53. g6+ {[%clk 0:00:13]}  Kf6 {[%clk 0:00:44]} 54. Be4 {[%clk 0:00:13]}  Na6 {[%clk 0:00:43]} 55. Bd3 {[%clk 0:00:12]}  Nxb4 {[%clk 0:00:42]} 56. Bxb5 {[%clk 0:00:12]}  Kxg6 {[%clk 0:00:42]} 57. Bc6 {[%clk 0:00:12]}  Kf5 {[%clk 0:00:42]} 58. Bd7+ {[%clk 0:00:11]}  Kf4 {[%clk 0:00:42]} 59. Bc6 {[%clk 0:00:12]}  Nc2+ {[%clk 0:00:43]} 60. Kd3 {[%clk 0:00:11]}  Ne3 {[%clk 0:00:43]} 61. Kd4 {[%clk 0:00:11]}  Nf5+ {[%clk 0:00:43]} 62. Kc4 {[%clk 0:00:10]}  Ke4 {[%clk 0:00:42]} 63. Bb7 {[%clk 0:00:10]}  Ne3+ {[%clk 0:00:42]} 64. Kc3 {[%clk 0:00:10]}  Ke5 {[%clk 0:00:42]} 65. Bc6 {[%clk 0:00:09]}  Nf5 {[%clk 0:00:39]} 66. Kd3 {[%clk 0:00:09]}  Nd4 {[%clk 0:00:37]} 67. Bb7 {[%clk 0:00:09]}  Nb3 {[%clk 0:00:37]} 68. Kc4 {[%clk 0:00:07]}  Na5+ {[%clk 0:00:37]} 69. Kb5 {[%clk 0:00:04]}  Nxb7 {[%clk 0:00:38]} 70. Kc6 {[%clk 0:00:05]}  Nc5 {[%clk 0:00:39]} 71. Kb5 {[%clk 0:00:00]}  Kxd5 {[%clk 0:00:39]} 0-1


[Site "https://www.chess.com"]

[Event "Titled Tuesday Blitz July 11 Early 2023"]
[White "Papasimakopoulos, Alexandros"]
[Black "Rottenwohrer Suarez, Juan"]
[WhiteFideId "4244125"]
[BlackFideId "32068182"]
[WhiteElo "2734"]
[BlackElo "2542"]
[Result "0-1"]
[Round "4"]
[TimeControl "180+2"]
[Date "2023.07.11"]
[WhiteClock "0:00:03"]
[BlackClock "0:00:10"]
[Board "57"]

1. d4 {[%clk 0:03:00]}  Nf6 {[%clk 0:02:59]} 2. c4 {[%clk 0:03:01]}  g6 {[%clk 0:02:59]} 3. Nc3 {[%clk 0:03:01]}  Bg7 {[%clk 0:02:59]} 4. Bg5 {[%clk 0:03:02]}  c5 {[%clk 0:02:55]} 5. d5 {[%clk 0:03:02]}  h6 {[%clk 0:02:43]} 6. Bf4 {[%clk 0:03:01]}  d6 {[%clk 0:02:40]} 7. h3 {[%clk 0:02:59]}  a6 {[%clk 0:02:35]} 8. a4 {[%clk 0:02:51]}  O-O {[%clk 0:02:33]} 9. Nf3 {[%clk 0:02:48]}  Qa5 {[%clk 0:02:19]} 10. Nd2 {[%clk 0:02:45]}  Nh5 {[%clk 0:02:08]} 11. Bh2 {[%clk 0:02:31]}  Nd7 {[%clk 0:01:57]} 12. e3 {[%clk 0:02:22]}  Qb4 {[%clk 0:01:54]} 13. Qc2 {[%clk 0:02:17]}  Nhf6 {[%clk 0:01:09]} 14. a5 {[%clk 0:02:12]}  b5 {[%clk 0:01:02]} 15. axb6 {[%clk 0:02:05]}  Nxb6 {[%clk 0:01:01]} 16. Be2 {[%clk 0:01:57]}  a5 {[%clk 0:01:01]} 17. O-O {[%clk 0:01:54]}  a4 {[%clk 0:01:01]} 18. Ra3 {[%clk 0:01:48]}  Bd7 {[%clk 0:01:01]} 19. Rfa1 {[%clk 0:01:46]}  Rfb8 {[%clk 0:01:01]} 20. R1a2 {[%clk 0:01:45]}  Ne8 {[%clk 0:01:00]} 21. Bd3 {[%clk 0:01:38]}  Kh7 {[%clk 0:00:58]} 22. h4 {[%clk 0:01:38]}  h5 {[%clk 0:00:58]} 23. Bf4 {[%clk 0:01:38]}  Nf6 {[%clk 0:00:57]} 24. f3 {[%clk 0:01:37]}  Rb7 {[%clk 0:00:57]} 25. Kh2 {[%clk 0:01:15]}  Rab8 {[%clk 0:00:57]} 26. Nd1 {[%clk 0:01:12]}  Nc8 {[%clk 0:00:49]} 27. Nc3 {[%clk 0:01:10]}  e5 {[%clk 0:00:34]} 28. dxe6 {[%clk 0:01:00]}  Bxe6 {[%clk 0:00:31]} 29. Rxa4 {[%clk 0:00:57]}  Qb6 {[%clk 0:00:28]} 30. Ra6 {[%clk 0:00:56]}  Qd8 {[%clk 0:00:28]} 31. Nb5 {[%clk 0:00:55]}  Rb6 {[%clk 0:00:25]} 32. Rxb6 {[%clk 0:00:53]}  Qxb6 {[%clk 0:00:25]} 33. b3 {[%clk 0:00:35]}  Rb7 {[%clk 0:00:25]} 34. Ra8 {[%clk 0:00:33]}  d5 {[%clk 0:00:23]} 35. Kh1 {[%clk 0:00:26]}  Ne7 {[%clk 0:00:21]} 36. Bg5 {[%clk 0:00:19]}  Rd7 {[%clk 0:00:17]} 37. e4 {[%clk 0:00:17]}  dxe4 {[%clk 0:00:14]} 38. Nxe4 {[%clk 0:00:17]}  Nxe4 {[%clk 0:00:14]} 39. Bxe4 {[%clk 0:00:18]}  Nf5 {[%clk 0:00:14]} 40. Bxf5 {[%clk 0:00:12]}  Bxf5 {[%clk 0:00:14]} 41. Qe2 {[%clk 0:00:13]}  Be6 {[%clk 0:00:07]} 42. Qe4 {[%clk 0:00:12]}  Rd1+ {[%clk 0:00:05]} 43. Kh2 {[%clk 0:00:12]}  Rd7 {[%clk 0:00:01]} 44. Bf4 {[%clk 0:00:13]}  Qb7 {[%clk 0:00:02]} 45. Rb8 {[%clk 0:00:13]}  Qxe4 {[%clk 0:00:02]} 46. fxe4 {[%clk 0:00:14]}  Rd3 {[%clk 0:00:02]} 47. Bd6 {[%clk 0:00:12]}  Rxb3 {[%clk 0:00:01]} 48. Bxc5 {[%clk 0:00:12]}  Bxc4 {[%clk 0:00:01]} 49. Rb7 {[%clk 0:00:04]}  Rxb5 {[%clk 0:00:02]} 50. Rxb5 {[%clk 0:00:04]}  Bxb5 {[%clk 0:00:03]} 51. Kg3 {[%clk 0:00:04]}  Bc4 {[%clk 0:00:03]} 52. Kf4 {[%clk 0:00:04]}  Be6 {[%clk 0:00:04]} 53. g3 {[%clk 0:00:04]}  Kg8 {[%clk 0:00:05]} 54. Kf3 {[%clk 0:00:05]}  Bh6 {[%clk 0:00:05]} 55. Bd6 {[%clk 0:00:05]}  Bf8 {[%clk 0:00:05]} 56. Bc7 {[%clk 0:00:06]}  Be7 {[%clk 0:00:06]} 57. Kf4 {[%clk 0:00:06]}  Kf8 {[%clk 0:00:06]} 58. Bb8 {[%clk 0:00:06]}  Ke8 {[%clk 0:00:07]} 59. e5 {[%clk 0:00:05]}  Kd7 {[%clk 0:00:07]} 60. Ba7 {[%clk 0:00:06]}  Kc6 {[%clk 0:00:08]} 61. Ke4 {[%clk 0:00:06]}  Bf5+ {[%clk 0:00:08]} 62. Kd4 {[%clk 0:00:07]}  Be6 {[%clk 0:00:08]} 63. Bb8 {[%clk 0:00:06]}  Bd8 {[%clk 0:00:08]} 64. Bd6 {[%clk 0:00:06]}  Bb6+ {[%clk 0:00:09]} 65. Ke4 {[%clk 0:00:06]}  Bf5+ {[%clk 0:00:09]} 66. Kf4 {[%clk 0:00:07]}  Kd5 {[%clk 0:00:10]} 67. Be7 {[%clk 0:00:07]}  Bd4 {[%clk 0:00:10]} 68. Bf6 {[%clk 0:00:07]}  Be6 {[%clk 0:00:10]} 69. Bg7 {[%clk 0:00:07]}  Bb2 {[%clk 0:00:10]} 70. Bf6 {[%clk 0:00:06]}  Bc1+ {[%clk 0:00:09]} 71. Kf3 {[%clk 0:00:07]}  Kd4 {[%clk 0:00:09]} 72. Ke2 {[%clk 0:00:06]}  Ke4 {[%clk 0:00:09]} 73. Kf2 {[%clk 0:00:07]}  Bb2 {[%clk 0:00:09]} 74. Ke2 {[%clk 0:00:03]}  Bxe5 {[%clk 0:00:10]} 0-1


[Site "https://www.chess.com"]

[Event "Titled Tuesday Blitz July 11 Early 2023"]
[White "Shturman, Arseniy"]
[Black "Gunina, Valentina"]
[WhiteFideId "34275797"]
[BlackFideId "4167570"]
[WhiteElo "2537"]
[BlackElo "2734"]
[Result "0-1"]
[Round "4"]
[TimeControl "180+2"]
[Date "2023.07.11"]
[WhiteClock "0:00:09"]
[BlackClock "0:01:37"]
[Board "58"]

1. e4 {[%clk 0:03:00]}  c6 {[%clk 0:02:57]} 2. d4 {[%clk 0:03:01]}  d5 {[%clk 0:02:57]} 3. e5 {[%clk 0:03:01]}  c5 {[%clk 0:02:57]} 4. Nf3 {[%clk 0:03:00]}  cxd4 {[%clk 0:02:57]} 5. Nxd4 {[%clk 0:03:00]}  Nc6 {[%clk 0:02:57]} 6. Nxc6 {[%clk 0:03:00]}  bxc6 {[%clk 0:02:57]} 7. Nd2 {[%clk 0:03:01]}  e6 {[%clk 0:02:57]} 8. Nf3 {[%clk 0:03:01]}  Bc5 {[%clk 0:02:49]} 9. Bd3 {[%clk 0:02:58]}  Ne7 {[%clk 0:02:49]} 10. Qe2 {[%clk 0:02:56]}  Qb6 {[%clk 0:02:44]} 11. O-O {[%clk 0:02:51]}  Ng6 {[%clk 0:02:36]} 12. c3 {[%clk 0:02:49]}  O-O {[%clk 0:02:32]} 13. h4 {[%clk 0:02:49]}  f5 {[%clk 0:02:29]} 14. exf6 {[%clk 0:02:45]}  gxf6 {[%clk 0:02:28]} 15. h5 {[%clk 0:02:42]}  Ne7 {[%clk 0:02:28]} 16. Bh6 {[%clk 0:02:34]}  Rf7 {[%clk 0:02:28]} 17. b4 {[%clk 0:01:18]}  Bd6 {[%clk 0:02:28]} 18. Be3 {[%clk 0:01:15]}  Qc7 {[%clk 0:02:27]} 19. Bc5 {[%clk 0:01:07]}  e5 {[%clk 0:02:25]} 20. Bxd6 {[%clk 0:01:06]}  Qxd6 {[%clk 0:02:25]} 21. Nd2 {[%clk 0:01:04]}  a5 {[%clk 0:02:20]} 22. a3 {[%clk 0:01:04]}  e4 {[%clk 0:02:19]} 23. Bc2 {[%clk 0:01:01]}  Rg7 {[%clk 0:02:15]} 24. Kh1 {[%clk 0:00:55]}  Bg4 {[%clk 0:02:12]} 25. f3 {[%clk 0:00:55]}  Bxh5 {[%clk 0:02:12]} 26. g4 {[%clk 0:00:48]}  exf3 {[%clk 0:02:06]} 27. Qxf3 {[%clk 0:00:48]}  Bxg4 {[%clk 0:02:07]} 28. Qxf6 {[%clk 0:00:48]}  Qg3 {[%clk 0:02:06]} 29. Qh6 {[%clk 0:00:40]}  Bh3 {[%clk 0:02:00]} 30. Qxg7+ {[%clk 0:00:34]}  Qxg7 {[%clk 0:01:59]} 31. Rg1 {[%clk 0:00:34]}  Ng6 {[%clk 0:01:59]} 32. Rg3 {[%clk 0:00:28]}  Be6 {[%clk 0:01:58]} 33. Rag1 {[%clk 0:00:28]}  Bf7 {[%clk 0:01:57]} 34. Nf3 {[%clk 0:00:27]}  Qxc3 {[%clk 0:01:55]} 35. Bxg6 {[%clk 0:00:17]}  hxg6 {[%clk 0:01:53]} 36. Nh4 {[%clk 0:00:17]}  Qd4 {[%clk 0:01:47]} 37. Nxg6 {[%clk 0:00:16]}  Qe4+ {[%clk 0:01:47]} 38. Kh2 {[%clk 0:00:16]}  Bxg6 {[%clk 0:01:48]} 39. Rxg6+ {[%clk 0:00:17]}  Kf7 {[%clk 0:01:48]} 40. Rg7+ {[%clk 0:00:15]}  Kf6 {[%clk 0:01:48]} 41. R7g4 {[%clk 0:00:13]}  Rh8+ {[%clk 0:01:47]} 42. Kg3 {[%clk 0:00:13]}  Qe3+ {[%clk 0:01:48]} 43. Kg2 {[%clk 0:00:13]}  Qe2+ {[%clk 0:01:43]} 44. Kg3 {[%clk 0:00:14]}  Qh2+ {[%clk 0:01:40]} 45. Kf3 {[%clk 0:00:14]}  Rh3+ {[%clk 0:01:41]} 46. R4g3 {[%clk 0:00:14]}  Rxg3+ {[%clk 0:01:41]} 47. Rxg3 {[%clk 0:00:15]}  axb4 {[%clk 0:01:37]} 48. axb4 {[%clk 0:00:14]}  Kf5 {[%clk 0:01:37]} 49. Rg2 {[%clk 0:00:14]}  Qf4+ {[%clk 0:01:37]} 50. Ke2 {[%clk 0:00:14]}  Qxb4 {[%clk 0:01:37]} 51. Rf2+ {[%clk 0:00:14]}  Ke4 {[%clk 0:01:37]} 52. Kf1 {[%clk 0:00:11]}  d4 {[%clk 0:01:37]} 53. Re2+ {[%clk 0:00:09]}  Kd5 {[%clk 0:01:37]} 0-1


[Site "https://www.chess.com"]

[Event "Titled Tuesday Blitz July 11 Early 2023"]
[White "Tokman, Ariel"]
[Black "Kumsiashvili, Nikoloz"]
[WhiteFideId "117420"]
[BlackFideId "13600621"]
[WhiteElo "2533"]
[BlackElo "2713"]
[Result "0-1"]
[Round "4"]
[TimeControl "180+2"]
[Date "2023.07.11"]
[WhiteClock "0:00:05"]
[BlackClock "0:00:11"]
[Board "60"]

1. e4 {[%clk 0:03:00]}  c5 {[%clk 0:03:00]} 2. Nf3 {[%clk 0:03:00]}  e6 {[%clk 0:03:00]} 3. g3 {[%clk 0:02:58]}  Nc6 {[%clk 0:03:00]} 4. Bg2 {[%clk 0:02:58]}  Nf6 {[%clk 0:02:57]} 5. d3 {[%clk 0:02:57]}  d5 {[%clk 0:02:57]} 6. Nbd2 {[%clk 0:02:58]}  Bd6 {[%clk 0:02:48]} 7. O-O {[%clk 0:02:56]}  O-O {[%clk 0:02:45]} 8. Re1 {[%clk 0:02:56]}  Nd7 {[%clk 0:02:42]} 9. exd5 {[%clk 0:02:36]}  exd5 {[%clk 0:02:42]} 10. d4 {[%clk 0:02:36]}  cxd4 {[%clk 0:02:31]} 11. Nb3 {[%clk 0:02:36]}  Nf6 {[%clk 0:02:27]} 12. Nbxd4 {[%clk 0:02:35]}  h6 {[%clk 0:02:27]} 13. h3 {[%clk 0:02:25]}  a6 {[%clk 0:02:24]} 14. c3 {[%clk 0:02:22]}  Bd7 {[%clk 0:02:16]} 15. Be3 {[%clk 0:02:21]}  Ne4 {[%clk 0:02:03]} 16. Nb3 {[%clk 0:02:02]}  Nf6 {[%clk 0:01:54]} 17. Nfd4 {[%clk 0:02:01]}  Ne5 {[%clk 0:01:52]} 18. Bf4 {[%clk 0:01:55]}  Qc7 {[%clk 0:01:49]} 19. Nc2 {[%clk 0:01:41]}  Nc4 {[%clk 0:01:15]} 20. Bxd6 {[%clk 0:01:42]}  Qxd6 {[%clk 0:01:16]} 21. Rb1 {[%clk 0:01:42]}  Rae8 {[%clk 0:01:10]} 22. Qd4 {[%clk 0:01:33]}  Rxe1+ {[%clk 0:01:04]} 23. Nxe1 {[%clk 0:01:34]}  Re8 {[%clk 0:00:56]} 24. Nd3 {[%clk 0:01:21]}  Re2 {[%clk 0:00:34]} 25. Bf1 {[%clk 0:01:17]}  Re4 {[%clk 0:00:30]} 26. Qc5 {[%clk 0:01:13]}  Qb8 {[%clk 0:00:24]} 27. f4 {[%clk 0:00:31]}  Re3 {[%clk 0:00:18]} 28. Kh2 {[%clk 0:00:20]}  Rxg3 {[%clk 0:00:14]} 29. Re1 {[%clk 0:00:09]}  Rxd3 {[%clk 0:00:12]} 30. Bxd3 {[%clk 0:00:09]}  Qxf4+ {[%clk 0:00:12]} 31. Kg1 {[%clk 0:00:05]}  Qg3+ {[%clk 0:00:11]} 0-1


[Site "https://www.chess.com"]

[Event "Titled Tuesday Blitz July 11 Early 2023"]
[White "Sidletskyi, Ivan"]
[Black "Amilal Munkhdalai"]
[WhiteFideId "14156024"]
[BlackFideId "4903250"]
[WhiteElo "2531"]
[BlackElo "2701"]
[Result "1/2-1/2"]
[Round "4"]
[TimeControl "180+2"]
[Date "2023.07.11"]
[WhiteClock "0:00:17"]
[BlackClock "0:00:18"]
[Board "61"]

1. e4 {[%clk 0:03:00]}  c5 {[%clk 0:03:00]} 2. Nf3 {[%clk 0:03:01]}  Nc6 {[%clk 0:03:00]} 3. Nc3 {[%clk 0:02:59]}  e6 {[%clk 0:03:00]} 4. d4 {[%clk 0:02:58]}  cxd4 {[%clk 0:03:00]} 5. Nxd4 {[%clk 0:02:58]}  Qc7 {[%clk 0:03:01]} 6. g3 {[%clk 0:02:58]}  a6 {[%clk 0:03:00]} 7. Bg2 {[%clk 0:02:59]}  Nf6 {[%clk 0:03:00]} 8. O-O {[%clk 0:02:59]}  d6 {[%clk 0:02:54]} 9. b3 {[%clk 0:02:55]}  Nxd4 {[%clk 0:02:47]} 10. Qxd4 {[%clk 0:02:56]}  e5 {[%clk 0:02:47]} 11. Qd3 {[%clk 0:02:54]}  Be6 {[%clk 0:02:47]} 12. a4 {[%clk 0:02:47]}  Rc8 {[%clk 0:02:45]} 13. Bb2 {[%clk 0:02:46]}  Be7 {[%clk 0:02:45]} 14. f4 {[%clk 0:02:38]}  O-O {[%clk 0:02:05]} 15. f5 {[%clk 0:02:12]}  Bd7 {[%clk 0:02:05]} 16. g4 {[%clk 0:02:13]}  Nxg4 {[%clk 0:01:53]} 17. Nd5 {[%clk 0:02:13]}  Qc5+ {[%clk 0:01:52]} 18. Bd4 {[%clk 0:02:13]}  exd4 {[%clk 0:01:28]} 19. Nxe7+ {[%clk 0:02:12]}  Kh8 {[%clk 0:01:28]} 20. Nxc8 {[%clk 0:02:13]}  Rxc8 {[%clk 0:01:23]} 21. Rac1 {[%clk 0:01:40]}  Ne5 {[%clk 0:01:20]} 22. Qg3 {[%clk 0:01:35]}  d3+ {[%clk 0:01:16]} 23. Qf2 {[%clk 0:01:34]}  dxc2 {[%clk 0:01:10]} 24. Qxc5 {[%clk 0:01:20]}  Rxc5 {[%clk 0:01:09]} 25. Rf2 {[%clk 0:01:00]}  Nd3 {[%clk 0:01:08]} 26. Rcxc2 {[%clk 0:00:52]}  Nxf2 {[%clk 0:01:08]} 27. Rxc5 {[%clk 0:00:52]}  dxc5 {[%clk 0:01:07]} 28. Kxf2 {[%clk 0:00:53]}  b6 {[%clk 0:00:45]} 29. Ke3 {[%clk 0:00:52]}  Kg8 {[%clk 0:00:40]} 30. Bf1 {[%clk 0:00:46]}  a5 {[%clk 0:00:33]} 31. Kf4 {[%clk 0:00:44]}  Kf8 {[%clk 0:00:28]} 32. Bc4 {[%clk 0:00:32]}  f6 {[%clk 0:00:25]} 33. e5 {[%clk 0:00:32]}  fxe5+ {[%clk 0:00:23]} 34. Kxe5 {[%clk 0:00:33]}  Ke7 {[%clk 0:00:23]} 35. h4 {[%clk 0:00:32]}  h6 {[%clk 0:00:21]} 36. Be2 {[%clk 0:00:27]}  Be8 {[%clk 0:00:21]} 37. Bc4 {[%clk 0:00:26]}  Bd7 {[%clk 0:00:19]} 38. Be2 {[%clk 0:00:24]}  Be8 {[%clk 0:00:20]} 39. Bc4 {[%clk 0:00:25]}  Bh5 {[%clk 0:00:20]} 40. Kd5 {[%clk 0:00:21]}  Bf3+ {[%clk 0:00:20]} 41. Ke5 {[%clk 0:00:21]}  Bc6 {[%clk 0:00:20]} 42. Be2 {[%clk 0:00:17]}  Be8 {[%clk 0:00:18]} 1/2-1/2


[Site "https://www.chess.com"]

[Event "Titled Tuesday Blitz July 11 Early 2023"]
[White "Haszon, David"]
[Black "djokovic74"]
[WhiteFideId "733610"]
[WhiteElo "2518"]
[BlackElo "2700"]
[Result "0-1"]
[Round "4"]
[TimeControl "180+2"]
[Date "2023.07.11"]
[WhiteClock "0:01:14"]
[BlackClock "0:01:04"]
[Board "65"]

1. d4 {[%clk 0:03:00]}  e6 {[%clk 0:03:00]} 2. e4 {[%clk 0:02:59]}  d5 {[%clk 0:03:00]} 3. Nd2 {[%clk 0:03:00]}  Nf6 {[%clk 0:02:59]} 4. e5 {[%clk 0:03:00]}  Nfd7 {[%clk 0:03:00]} 5. Bd3 {[%clk 0:03:01]}  c5 {[%clk 0:03:01]} 6. c3 {[%clk 0:03:02]}  Nc6 {[%clk 0:03:02]} 7. Ngf3 {[%clk 0:03:02]}  f6 {[%clk 0:02:59]} 8. Ng5 {[%clk 0:02:38]}  fxg5 {[%clk 0:02:57]} 9. Qh5+ {[%clk 0:02:37]}  g6 {[%clk 0:02:58]} 10. Bxg6+ {[%clk 0:02:37]}  hxg6 {[%clk 0:02:58]} 11. Qxg6+ {[%clk 0:02:35]}  Ke7 {[%clk 0:02:58]} 12. Qxg5+ {[%clk 0:02:25]}  Kf7 {[%clk 0:02:55]} 13. Qf4+ {[%clk 0:02:22]}  Nf6 {[%clk 0:02:35]} 14. exf6 {[%clk 0:02:22]}  Bd6 {[%clk 0:02:35]} 15. Qg5 {[%clk 0:02:08]}  Qxf6 {[%clk 0:02:33]} 16. Qxf6+ {[%clk 0:02:06]}  Kxf6 {[%clk 0:02:33]} 17. dxc5 {[%clk 0:02:05]}  Bxc5 {[%clk 0:02:32]} 18. Nf3 {[%clk 0:01:59]}  Bd7 {[%clk 0:02:32]} 19. Bg5+ {[%clk 0:01:59]}  Kf7 {[%clk 0:02:32]} 20. h4 {[%clk 0:01:50]}  e5 {[%clk 0:02:26]} 21. b4 {[%clk 0:01:50]}  Bd6 {[%clk 0:02:21]} 22. O-O-O {[%clk 0:01:47]}  Be6 {[%clk 0:02:20]} 23. Rhe1 {[%clk 0:01:39]}  e4 {[%clk 0:02:18]} 24. Nd2 {[%clk 0:01:29]}  Be5 {[%clk 0:01:41]} 25. c4 {[%clk 0:01:24]}  Nxb4 {[%clk 0:01:27]} 26. cxd5 {[%clk 0:01:20]}  Nxa2+ {[%clk 0:01:27]} 27. Kc2 {[%clk 0:01:20]}  Rac8+ {[%clk 0:01:23]} 28. Kb3 {[%clk 0:01:21]}  Bxd5+ {[%clk 0:01:22]} 29. Ka3 {[%clk 0:01:21]}  Rc3+ {[%clk 0:01:16]} 30. Kb2 {[%clk 0:01:18]}  Rd3+ {[%clk 0:01:05]} 31. Kb1 {[%clk 0:01:16]}  Nc3+ {[%clk 0:01:05]} 32. Kc2 {[%clk 0:01:14]}  Nxd1 {[%clk 0:01:04]} 0-1


[Site "https://www.chess.com"]

[Event "Titled Tuesday Blitz July 11 Early 2023"]
[White "WindWhistler11"]
[Black "Lorparizangeneh, Shahin"]
[BlackFideId "12521604"]
[WhiteElo "2517"]
[BlackElo "2688"]
[Result "0-1"]
[Round "4"]
[TimeControl "180+2"]
[Date "2023.07.11"]
[WhiteClock "0:00:00"]
[BlackClock "0:00:18"]
[Board "67"]

1. Nf3 {[%clk 0:03:00]}  c5 {[%clk 0:02:59]} 2. g3 {[%clk 0:03:00]}  Nc6 {[%clk 0:02:57]} 3. d4 {[%clk 0:02:59]}  cxd4 {[%clk 0:02:57]} 4. Nxd4 {[%clk 0:03:00]}  g6 {[%clk 0:02:52]} 5. Bg2 {[%clk 0:02:58]}  Bg7 {[%clk 0:02:53]} 6. Nb3 {[%clk 0:02:57]}  d6 {[%clk 0:02:52]} 7. Na3 {[%clk 0:02:56]}  Be6 {[%clk 0:02:50]} 8. c3 {[%clk 0:02:51]}  Qd7 {[%clk 0:02:48]} 9. h4 {[%clk 0:02:50]}  Nf6 {[%clk 0:02:44]} 10. Nc2 {[%clk 0:02:46]}  O-O {[%clk 0:02:34]} 11. Nbd4 {[%clk 0:02:45]}  Nxd4 {[%clk 0:02:30]} 12. Nxd4 {[%clk 0:02:39]}  Bd5 {[%clk 0:02:27]} 13. Bh3 {[%clk 0:02:28]}  Qc7 {[%clk 0:02:16]} 14. O-O {[%clk 0:02:28]}  e5 {[%clk 0:02:15]} 15. Nc2 {[%clk 0:02:18]}  b6 {[%clk 0:02:10]} 16. Bg5 {[%clk 0:02:12]}  Bb7 {[%clk 0:02:10]} 17. Bxf6 {[%clk 0:01:55]}  Bxf6 {[%clk 0:02:11]} 18. Ne3 {[%clk 0:01:55]}  Qc6 {[%clk 0:02:03]} 19. Bg2 {[%clk 0:01:52]}  e4 {[%clk 0:02:03]} 20. Qd2 {[%clk 0:01:37]}  d5 {[%clk 0:01:59]} 21. Rad1 {[%clk 0:01:24]}  Rad8 {[%clk 0:01:56]} 22. Nc2 {[%clk 0:01:06]}  Qb5 {[%clk 0:01:42]} 23. Rb1 {[%clk 0:00:36]}  Qa4 {[%clk 0:01:32]} 24. a3 {[%clk 0:00:35]}  d4 {[%clk 0:01:33]} 25. b3 {[%clk 0:00:27]}  Qd7 {[%clk 0:01:13]} 26. Qf4 {[%clk 0:00:27]}  Qd6 {[%clk 0:01:06]} 27. Qxd6 {[%clk 0:00:25]}  Rxd6 {[%clk 0:01:07]} 28. cxd4 {[%clk 0:00:20]}  Bxd4 {[%clk 0:01:08]} 29. Rfd1 {[%clk 0:00:19]}  Be5 {[%clk 0:01:04]} 30. Rxd6 {[%clk 0:00:18]}  Bxd6 {[%clk 0:01:05]} 31. b4 {[%clk 0:00:16]}  Rc8 {[%clk 0:01:04]} 32. Nd4 {[%clk 0:00:16]}  Be5 {[%clk 0:01:03]} 33. Rd1 {[%clk 0:00:12]}  Kg7 {[%clk 0:00:57]} 34. e3 {[%clk 0:00:11]}  a6 {[%clk 0:00:56]} 35. h5 {[%clk 0:00:10]}  Rc3 {[%clk 0:00:54]} 36. hxg6 {[%clk 0:00:10]}  hxg6 {[%clk 0:00:55]} 37. a4 {[%clk 0:00:09]}  Rc4 {[%clk 0:00:51]} 38. b5 {[%clk 0:00:06]}  Rxa4 {[%clk 0:00:48]} 39. bxa6 {[%clk 0:00:07]}  Rxa6 {[%clk 0:00:48]} 40. Nb5 {[%clk 0:00:07]}  Ra5 {[%clk 0:00:41]} 41. Nd6 {[%clk 0:00:05]}  Bxd6 {[%clk 0:00:39]} 42. Rxd6 {[%clk 0:00:06]}  Ra1+ {[%clk 0:00:35]} 43. Kh2 {[%clk 0:00:05]}  Rb1 {[%clk 0:00:35]} 44. Rd4 {[%clk 0:00:05]}  Rb2 {[%clk 0:00:32]} 45. Kg1 {[%clk 0:00:06]}  Rb1+ {[%clk 0:00:31]} 46. Kh2 {[%clk 0:00:06]}  b5 {[%clk 0:00:21]} 47. Bxe4 {[%clk 0:00:06]}  Bxe4 {[%clk 0:00:22]} 48. Rxe4 {[%clk 0:00:07]}  b4 {[%clk 0:00:22]} 49. Kg2 {[%clk 0:00:07]}  b3 {[%clk 0:00:22]} 50. Rb4 {[%clk 0:00:07]}  Kf6 {[%clk 0:00:22]} 51. Rb7 {[%clk 0:00:03]}  Ke6 {[%clk 0:00:20]} 52. Kf3 {[%clk 0:00:03]}  f5 {[%clk 0:00:21]} 53. g4 {[%clk 0:00:02]}  fxg4+ {[%clk 0:00:21]} 54. Kxg4 {[%clk 0:00:03]}  b2 {[%clk 0:00:22]} 55. Kf4 {[%clk 0:00:02]}  g5+ {[%clk 0:00:21]} 56. Ke4 {[%clk 0:00:02]}  g4 {[%clk 0:00:21]} 57. Rb6+ {[%clk 0:00:02]}  Kd7 {[%clk 0:00:20]} 58. Rb4 {[%clk 0:00:02]}  Kc6 {[%clk 0:00:19]} 59. Ke5 {[%clk 0:00:02]}  Kc5 {[%clk 0:00:19]} 60. Rb8 {[%clk 0:00:02]}  Kc4 {[%clk 0:00:19]} 61. e4 {[%clk 0:00:02]}  Kc3 {[%clk 0:00:20]} 62. Ke6 {[%clk 0:00:02]}  Re1 {[%clk 0:00:19]} 63. Rc8+ {[%clk 0:00:02]}  Kd4 {[%clk 0:00:19]} 64. Rd8+ {[%clk 0:00:00]}  Kxe4 {[%clk 0:00:18]} 0-1


[Site "https://www.chess.com"]